[Event "*** Titled Tuesday 3|2 Blitz"]
[Site "Chess.com"]
[Date "2015.02.24"]
[Round "3"]
[White "Tilicheev_Viacheslav"]
[Black "gumersindo"]
[Result "1-0"]
[WhiteElo "2540"]
[BlackElo "2106"]
[TimeControl "180+2"]
[EndTime "11:35:20 PST"]
[Termination "Tilicheev_Viacheslav won by resignation"]

1. e4 {[%clk 0:03:00]} 1... e5 {[%clk 0:02:58.3]} 2. Nf3 {[%clk 0:02:59.6]} 2...
Nc6 {[%clk 0:02:59.4]} 3. Nc3 {[%clk 0:03:01]} 3... Nf6 {[%clk 0:02:59.9]} 4.
Nxe5 {[%clk 0:03:02.4]} 4... Nxe5 {[%clk 0:02:59.9]} 5. d4 {[%clk 0:03:04.1]}
5... Ng6 {[%clk 0:02:58.6]} 6. e5 {[%clk 0:03:05]} 6... Ng8 {[%clk 0:02:56.6]}
7. Bc4 {[%clk 0:03:05.9]} 7... d5 {[%clk 0:02:36]} 8. Bxd5 {[%clk 0:03:01.3]}
8... N8e7 {[%clk 0:02:34.8]} 9. Bb3 {[%clk 0:02:59.8]} 9... Qd7 {[%clk
0:02:34.7]} 10. Qf3 {[%clk 0:02:40.8]} 10... Qf5 {[%clk 0:02:30.2]} 11. Nb5
{[%clk 0:02:24.3]} 11... Qxf3 {[%clk 0:02:20.5]} 12. gxf3 {[%clk 0:02:26.2]}
12... Kd8 {[%clk 0:02:13.6]} 13. Bxf7 {[%clk 0:02:25.4]} 13... Bd7 {[%clk
0:02:11.4]} 14. Nc3 {[%clk 0:02:24.7]} 14... Be8 {[%clk 0:02:05.4]} 15. Bc4
{[%clk 0:02:22.6]} 15... c6 {[%clk 0:02:04.5]} 16. Be3 {[%clk 0:02:19.3]} 16...
Nf5 {[%clk 0:02:02.1]} 17. O-O-O {[%clk 0:02:19.5]} 17... Bb4 {[%clk 0:01:57.5]}
18. Ne4 {[%clk 0:02:19.5]} 18... Kc7 {[%clk 0:01:53.8]} 19. c3 {[%clk
0:02:17.2]} 19... Be7 {[%clk 0:01:53]} 20. Ng3 {[%clk 0:02:14.4]} 20... Ngh4
{[%clk 0:01:46.9]} 21. Nxf5 {[%clk 0:01:59.2]} 21... Nxf5 {[%clk 0:01:47.4]} 22.
f4 {[%clk 0:01:57.7]} 22... a5 {[%clk 0:01:39.1]} 23. Rdg1 {[%clk 0:01:56.1]}
23... Bg6 {[%clk 0:01:38.9]} 24. Kd2 {[%clk 0:01:43.5]} 24... Rhf8 {[%clk
0:01:33.4]} 25. Bd3 {[%clk 0:01:44.2]} 25... Rad8 {[%clk 0:01:21.6]} 26. h4
{[%clk 0:01:25.7]} 26... Nxh4 {[%clk 0:01:17.9]} 27. Bxg6 {[%clk 0:01:26.1]}
27... Nf3+ {[%clk 0:01:06]} 28. Kd3 {[%clk 0:01:10.1]} 28... Nxg1 {[%clk
0:01:06.7]} 29. Be4 {[%clk 0:01:10.9]} 29... g5 {[%clk 0:01:01.3]} 30. f5 {[%clk
0:01:00.8]} 30... Nf3 {[%clk 0:00:58.8]} 31. Bxf3 {[%clk 0:00:55.3]} 31... Rxf5
{[%clk 0:00:58.9]} 32. Rxh7 {[%clk 0:00:56.9]} 32... Rxf3 {[%clk 0:00:55.2]} 33.
Rxe7+ {[%clk 0:00:56.5]} 33... Kb8 {[%clk 0:00:53]} 34. Ke4 {[%clk 0:00:56.1]}
34... Rdf8 {[%clk 0:00:51.3]} 35. Rg7 {[%clk 0:00:53.8]} 35... Kc8 {[%clk
0:00:33.5]} 36. Rxg5 {[%clk 0:00:52.3]} 36... Rxf2 {[%clk 0:00:32]} 37. Bxf2
{[%clk 0:00:51.2]} 37... Rxf2 {[%clk 0:00:33.4]} 38. Rg8+ {[%clk 0:00:49.2]}
38... Kc7 {[%clk 0:00:32.1]} 39. Rg7+ {[%clk 0:00:50.4]} 39... Kc8 {[%clk
0:00:32.5]} 40. Kd3 {[%clk 0:00:42.7]} 40... Rxb2 {[%clk 0:00:30.7]} 41. Kc4
{[%clk 0:00:44.3]} 41... Rxa2 {[%clk 0:00:26]} 42. Kc5 {[%clk 0:00:45.5]} 42...
Rc2 {[%clk 0:00:18.9]} 43. Kd6 {[%clk 0:00:46.1]} 43... b5 {[%clk 0:00:19.2]}
44. e6 {[%clk 0:00:46.3]} 44... Rxc3 {[%clk 0:00:14.6]} 45. e7 {[%clk
0:00:47.4]} 45... Re3 {[%clk 0:00:15.6]} 46. Rg8+ {[%clk 0:00:48.9]} 46... Kb7
{[%clk 0:00:17]} 47. e8=Q {[%clk 0:00:50.8]} 47... Rxe8 {[%clk 0:00:17.4]} 48.
Rxe8 {[%clk 0:00:52.7]} 48... a4 {[%clk 0:00:19]} 49. Kc5 {[%clk 0:00:54]} 49...
a3 {[%clk 0:00:19.8]} 50. Kb4 {[%clk 0:00:55.3]} 50... a2 {[%clk 0:00:20.6]} 51.
Re1 {[%clk 0:00:56.9]} 51... c5+ {[%clk 0:00:21.8]} 52. dxc5 {[%clk 0:00:57.6]}
1-0

[Event "*** Titled Tuesday 3|2 Blitz"]
[Site "Chess.com"]
[Date "2015.02.24"]
[Round "3"]
[White "Nouki"]
[Black "petrpalachev"]
[Result "1-0"]
[WhiteElo "2650"]
[BlackElo "2402"]
[TimeControl "180+2"]
[EndTime "11:35:23 PST"]
[Termination "Nouki won by resignation"]

1. d4 {[%clk 0:03:00]} 1... Nf6 {[%clk 0:02:57.7]} 2. c4 {[%clk 0:03:00.1]} 2...
e6 {[%clk 0:02:58.5]} 3. Nc3 {[%clk 0:02:56.1]} 3... Bb4 {[%clk 0:02:58.8]} 4.
g3 {[%clk 0:02:57]} 4... c5 {[%clk 0:02:56.8]} 5. Nf3 {[%clk 0:02:58.1]} 5...
cxd4 {[%clk 0:02:51.1]} 6. Nxd4 {[%clk 0:03:00]} 6... Ne4 {[%clk 0:02:49]} 7.
Bd2 {[%clk 0:02:57.8]} 7... Nxd2 {[%clk 0:02:49.1]} 8. Qxd2 {[%clk 0:02:58.8]}
8... O-O {[%clk 0:02:49.6]} 9. Bg2 {[%clk 0:02:59.9]} 9... Nc6 {[%clk
0:02:50.1]} 10. O-O {[%clk 0:03:00.3]} 10... Qa5 {[%clk 0:02:45.4]} 11. Nb3
{[%clk 0:02:39.7]} 11... Bxc3 {[%clk 0:02:43.8]} 12. bxc3 {[%clk 0:02:38.6]}
12... Qc7 {[%clk 0:02:42.1]} 13. c5 {[%clk 0:02:39.3]} 13... b6 {[%clk
0:02:42.1]} 14. Rfd1 {[%clk 0:02:34.3]} 14... bxc5 {[%clk 0:02:35.8]} 15. Nxc5
{[%clk 0:02:36.2]} 15... d5 {[%clk 0:02:36.6]} 16. e4 {[%clk 0:02:18.3]} 16...
Ne7 {[%clk 0:02:36.1]} 17. Qe3 {[%clk 0:02:16.9]} 17... dxe4 {[%clk 0:02:17.2]}
18. Bxe4 {[%clk 0:02:12.5]} 18... Rb8 {[%clk 0:02:18.7]} 19. c4 {[%clk
0:02:10.1]} 19... e5 {[%clk 0:01:57.5]} 20. Rac1 {[%clk 0:02:09]} 20... Rb6
{[%clk 0:01:56.1]} 21. Nd3 {[%clk 0:01:54]} 21... f6 {[%clk 0:01:42.1]} 22. c5
{[%clk 0:01:53.2]} 22... Rb8 {[%clk 0:01:37.7]} 23. c6 {[%clk 0:01:47.1]} 23...
Nf5 {[%clk 0:01:34.9]} 24. Qc5 {[%clk 0:01:30]} 24... Nd4 {[%clk 0:01:35.8]} 25.
Bd5+ {[%clk 0:01:30.7]} 25... Be6 {[%clk 0:01:35.1]} 26. Bxe6+ {[%clk
0:01:31.7]} 26... Nxe6 {[%clk 0:01:37]} 27. Qc4 {[%clk 0:01:32.5]} 27... Qf7
{[%clk 0:01:33.6]} 28. Nc5 {[%clk 0:01:23.9]} 28... Nxc5 {[%clk 0:01:18.7]} 29.
Qxc5 {[%clk 0:01:25.8]} 29... Qxa2 {[%clk 0:01:11.6]} 30. c7 {[%clk 0:01:19.5]}
30... Rbc8 {[%clk 0:01:09]} 31. Rd7 {[%clk 0:01:18.7]} 31... Qe6 {[%clk
0:00:54.4]} 32. Rcd1 {[%clk 0:01:16.3]} 32... h5 {[%clk 0:00:44.8]} 33. Rd8
{[%clk 0:01:04]} 33... Re8 {[%clk 0:00:14.4]} 34. Qb5 {[%clk 0:00:31.8]} 34...
Rf8 {[%clk 0:00:11.3]} 35. Rxf8+ {[%clk 0:00:29.3]} 35... Kxf8 {[%clk
0:00:09.7]} 36. Rd8+ {[%clk 0:00:29.5]} 36... Ke7 {[%clk 0:00:03.7]} 37. Qc5+
{[%clk 0:00:30.2]} 37... Kf7 {[%clk 0:00:04.4]} 38. Qf8+ {[%clk 0:00:31.2]}
38... Kg6 {[%clk 0:00:04.1]} 39. Rxc8 {[%clk 0:00:32.5]} 39... Qd5 {[%clk
0:00:04.8]} 40. Qe8+ {[%clk 0:00:30.6]} 40... Kg5 {[%clk 0:00:06.3]} 41. Rd8
{[%clk 0:00:29.1]} 41... Qe4 {[%clk 0:00:04.4]} 42. h4+ {[%clk 0:00:25.6]} 42...
Kg4 {[%clk 0:00:05.4]} 43. c8=Q+ {[%clk 0:00:26.7]} 43... f5 {[%clk 0:00:06]}
44. Qg6+ {[%clk 0:00:26.5]} 44... Kh3 {[%clk 0:00:06.3]} 45. Qcxf5+ {[%clk
0:00:27.7]} 1-0

[Event "*** Titled Tuesday 3|2 Blitz"]
[Site "Chess.com"]
[Date "2015.02.24"]
[Round "3"]
[White "IMRosen"]
[Black "megarompa"]
[Result "1/2-1/2"]
[WhiteElo "2056"]
[BlackElo "2651"]
[TimeControl "180+2"]
[EndTime "11:35:52 PST"]
[Termination "Game drawn by repetition"]

1. c4 {[%clk 0:03:00]} 1... e5 {[%clk 0:02:58.4]} 2. Nc3 {[%clk 0:03:01.1]} 2...
Nf6 {[%clk 0:02:59.9]} 3. Nf3 {[%clk 0:03:01.9]} 3... Nc6 {[%clk 0:03:01.1]} 4.
a3 {[%clk 0:03:03.5]} 4... d5 {[%clk 0:03:01.4]} 5. cxd5 {[%clk 0:03:00.3]} 5...
Nxd5 {[%clk 0:03:03.3]} 6. Qc2 {[%clk 0:03:02]} 6... Be7 {[%clk 0:02:59.3]} 7.
e3 {[%clk 0:03:03]} 7... O-O {[%clk 0:02:58]} 8. Nxd5 {[%clk 0:03:04.6]} 8...
Qxd5 {[%clk 0:02:55.6]} 9. Bd3 {[%clk 0:03:06.3]} 9... g6 {[%clk 0:02:52.2]} 10.
Be4 {[%clk 0:03:06.8]} 10... Qd6 {[%clk 0:02:46.4]} 11. b4 {[%clk 0:03:08.3]}
11... f5 {[%clk 0:02:47]} 12. Bxc6 {[%clk 0:02:56]} 12... bxc6 {[%clk
0:02:48.9]} 13. Bb2 {[%clk 0:02:57.5]} 13... Bf6 {[%clk 0:02:44.5]} 14. O-O
{[%clk 0:02:53.3]} 14... a5 {[%clk 0:02:45.9]} 15. Rfc1 {[%clk 0:02:38.2]} 15...
axb4 {[%clk 0:02:42.3]} 16. axb4 {[%clk 0:02:39.6]} 16... Rxa1 {[%clk
0:02:44.2]} 17. Rxa1 {[%clk 0:02:40.1]} 17... Be6 {[%clk 0:02:42.4]} 18. Bc3
{[%clk 0:02:34.7]} 18... Bd5 {[%clk 0:02:32.3]} 19. Ra6 {[%clk 0:02:09.3]} 19...
Bxf3 {[%clk 0:02:19.8]} 20. gxf3 {[%clk 0:02:09.1]} 20... Qd5 {[%clk 0:02:21.5]}
21. Kg2 {[%clk 0:02:03.1]} 21... e4 {[%clk 0:02:14.8]} 22. fxe4 {[%clk
0:01:49.6]} 22... fxe4 {[%clk 0:02:10]} 23. Bxf6 {[%clk 0:01:30.3]} 23... Rxf6
{[%clk 0:02:11.9]} 24. Qa2 {[%clk 0:01:32]} 24... Kg7 {[%clk 0:02:09.4]} 25.
Qxd5 {[%clk 0:01:21.3]} 25... cxd5 {[%clk 0:02:11.3]} 26. Ra5 {[%clk 0:01:05.1]}
26... c6 {[%clk 0:02:09.5]} 27. Rc5 {[%clk 0:01:05.9]} 27... Rd6 {[%clk
0:02:08]} 28. b5 {[%clk 0:01:03.2]} 28... cxb5 {[%clk 0:02:09.1]} 29. Rxb5
{[%clk 0:01:05.1]} 29... Kf6 {[%clk 0:02:08.2]} 30. Kf1 {[%clk 0:00:55.5]} 30...
Ke5 {[%clk 0:02:08.4]} 31. Ke2 {[%clk 0:00:55]} 31... g5 {[%clk 0:02:06.4]} 32.
Rb7 {[%clk 0:00:54.2]} 32... Rh6 {[%clk 0:02:05.3]} 33. Rg7 {[%clk 0:00:50.6]}
33... Rh5 {[%clk 0:02:06.2]} 34. Kf1 {[%clk 0:00:39.6]} 34... Kf6 {[%clk
0:02:05.7]} 35. Rd7 {[%clk 0:00:38.9]} 35... Rxh2 {[%clk 0:02:06.9]} 36. Rxd5
{[%clk 0:00:39.2]} 36... Rh1+ {[%clk 0:02:08.4]} 37. Kg2 {[%clk 0:00:38.7]}
37... Ra1 {[%clk 0:02:10.3]} 38. d3 {[%clk 0:00:36.9]} 38... exd3 {[%clk
0:02:04.5]} 39. Rxd3 {[%clk 0:00:38.8]} 39... h5 {[%clk 0:02:05.9]} 40. Rb3
{[%clk 0:00:38.4]} 40... Ra5 {[%clk 0:02:03.9]} 41. Rb4 {[%clk 0:00:38]} 41...
Kf5 {[%clk 0:02:04.8]} 42. Kg3 {[%clk 0:00:35.7]} 42... h4+ {[%clk 0:02:06.3]}
43. Kf3 {[%clk 0:00:34.6]} 43... Rc5 {[%clk 0:02:03.4]} 44. Ra4 {[%clk
0:00:35.2]} 44... Rc1 {[%clk 0:02:00.6]} 45. Ra5+ {[%clk 0:00:34.5]} 45... Kg6
{[%clk 0:02:01.2]} 46. Ra8 {[%clk 0:00:35.5]} 46... Rc5 {[%clk 0:01:58]} 47.
Rg8+ {[%clk 0:00:35.2]} 47... Kf6 {[%clk 0:01:59.5]} 48. Rf8+ {[%clk 0:00:35.9]}
48... Kg7 {[%clk 0:01:58]} 49. Rb8 {[%clk 0:00:36.7]} 49... Rf5+ {[%clk
0:01:58.4]} 50. Kg2 {[%clk 0:00:37.1]} 50... Kg6 {[%clk 0:01:56.7]} 51. Rg8+
{[%clk 0:00:37.5]} 51... Kh5 {[%clk 0:01:58.2]} 52. Rh8+ {[%clk 0:00:38.8]}
52... Kg4 {[%clk 0:01:57.1]} 53. Rb8 {[%clk 0:00:29.6]} 53... h3+ {[%clk
0:01:55.2]} 54. Kg1 {[%clk 0:00:28.8]} 54... Rd5 {[%clk 0:01:49.8]} 55. Rf8
{[%clk 0:00:26.3]} 55... Rd1+ {[%clk 0:01:47.5]} 56. Kh2 {[%clk 0:00:27.4]}
56... Rf1 {[%clk 0:01:49.1]} 57. Rf7 {[%clk 0:00:24]} 57... Kh4 {[%clk
0:01:49.5]} 58. Rh7+ {[%clk 0:00:24]} 58... Kg4 {[%clk 0:01:51]} 59. Rf7 {[%clk
0:00:25.6]} 59... Kh4 {[%clk 0:01:19]} 60. Rh7+ {[%clk 0:00:25.5]} 60... Kg4
{[%clk 0:01:18.2]} 61. Rf7 {[%clk 0:00:27]} 61... Kh4 {[%clk 0:01:09.4]} 1/2-1/2

[Event "*** Titled Tuesday 3|2 Blitz"]
[Site "Chess.com"]
[Date "2015.02.24"]
[Round "3"]
[White "Tomsel"]
[Black "xtremeungar"]
[Result "0-1"]
[WhiteElo "2279"]
[BlackElo "2208"]
[TimeControl "180+2"]
[EndTime "11:35:53 PST"]
[Termination "xtremeungar won by resignation"]

1. d4 {[%clk 0:03:00]} 1... Nf6 {[%clk 0:02:58.5]} 2. Bf4 {[%clk 0:03:00.2]}
2... b6 {[%clk 0:02:56.3]} 3. e3 {[%clk 0:03:00.8]} 3... Bb7 {[%clk 0:02:57]} 4.
Nf3 {[%clk 0:03:00.8]} 4... e6 {[%clk 0:02:58.1]} 5. c3 {[%clk 0:02:58.7]} 5...
Bd6 {[%clk 0:02:58.8]} 6. Bg3 {[%clk 0:02:58.9]} 6... O-O {[%clk 0:02:59.9]} 7.
Bd3 {[%clk 0:02:59.8]} 7... Ne4 {[%clk 0:02:54]} 8. Nbd2 {[%clk 0:03:00.4]} 8...
f5 {[%clk 0:02:54.8]} 9. Qc2 {[%clk 0:03:00.6]} 9... Bxg3 {[%clk 0:02:47.1]} 10.
hxg3 {[%clk 0:03:02.5]} 10... d5 {[%clk 0:02:48.1]} 11. Ne5 {[%clk 0:03:00.3]}
11... Nd7 {[%clk 0:02:49.1]} 12. Ndf3 {[%clk 0:03:00.3]} 12... Ndf6 {[%clk
0:02:41.1]} 13. Rh4 {[%clk 0:02:49.1]} 13... c5 {[%clk 0:02:34.6]} 14. g4 {[%clk
0:02:44.3]} 14... Rc8 {[%clk 0:02:21.5]} 15. O-O-O {[%clk 0:02:24.4]} 15... cxd4
{[%clk 0:02:06.8]} 16. exd4 {[%clk 0:02:24]} 16... b5 {[%clk 0:01:48.7]} 17.
Bxb5 {[%clk 0:02:21.2]} 17... Qa5 {[%clk 0:01:49]} 18. Qe2 {[%clk 0:01:48.4]}
18... Qxa2 {[%clk 0:01:35.9]} 19. Qc2 {[%clk 0:00:27.9]} 19... Qa5 {[%clk
0:01:05.9]} 20. Qa4 {[%clk 0:00:25.8]} 20... Qxa4 {[%clk 0:01:05.8]} 21. Bxa4
{[%clk 0:00:27.7]} 21... Nxf2 {[%clk 0:01:05.9]} 22. Rd2 {[%clk 0:00:20.3]}
22... N2xg4 {[%clk 0:00:54.6]} 23. Nxg4 {[%clk 0:00:15.6]} 23... fxg4 {[%clk
0:00:55.8]} 24. Ne5 {[%clk 0:00:16.5]} 24... h5 {[%clk 0:00:57]} 25. Rh1 {[%clk
0:00:12.6]} 25... Rc7 {[%clk 0:00:53.1]} 26. Re2 {[%clk 0:00:10.9]} 26... Ne4
{[%clk 0:00:38.2]} 27. Re3 {[%clk 0:00:07.1]} 27... Rf5 {[%clk 0:00:36.2]} 28.
Be8 {[%clk 0:00:07.2]} 28... Nf6 {[%clk 0:00:35]} 29. Bg6 {[%clk 0:00:07.4]}
29... Rg5 {[%clk 0:00:36.3]} 30. Bc2 {[%clk 0:00:06.8]} 30... Ne4 {[%clk
0:00:32.3]} 31. Rf1 {[%clk 0:00:05.1]} 31... Rf5 {[%clk 0:00:32.8]} 32. Rh1
{[%clk 0:00:05.5]} 32... Rc8 {[%clk 0:00:29.2]} 33. Nd3 {[%clk 0:00:04.2]} 33...
Rcf8 {[%clk 0:00:29.6]} 34. Nc5 {[%clk 0:00:05.2]} 34... Rf1+ {[%clk 0:00:30.4]}
35. Rxf1 {[%clk 0:00:06]} 35... Rxf1+ {[%clk 0:00:32.3]} 36. Bd1 {[%clk
0:00:07.4]} 36... Nxc5 {[%clk 0:00:30.6]} 37. dxc5 {[%clk 0:00:08.6]} 37... Kf7
{[%clk 0:00:32.2]} 38. Kd2 {[%clk 0:00:10]} 38... Kf6 {[%clk 0:00:33.5]} 39. Ba4
{[%clk 0:00:09.9]} 39... e5 {[%clk 0:00:34.6]} 40. c6 {[%clk 0:00:11.1]} 40...
Bc8 {[%clk 0:00:36.2]} 41. c7 {[%clk 0:00:11.2]} 41... h4 {[%clk 0:00:37]} 42.
Bc6 {[%clk 0:00:11.8]} 42... Ke6 {[%clk 0:00:37.9]} 43. c4 {[%clk 0:00:13.1]}
43... d4 {[%clk 0:00:38.4]} 44. Re4 {[%clk 0:00:12.7]} 44... Kd6 {[%clk
0:00:39.6]} 45. Bd5 {[%clk 0:00:10.4]} 45... Rf2+ {[%clk 0:00:39.8]} 46. Kc1
{[%clk 0:00:10.6]} 46... Rxg2 {[%clk 0:00:40.7]} 47. Re1 {[%clk 0:00:10.8]}
47... Rf2 {[%clk 0:00:40.4]} 48. Rh1 {[%clk 0:00:11.2]} 48... h3 {[%clk
0:00:41.2]} 49. Rg1 {[%clk 0:00:12.7]} 49... Kxc7 {[%clk 0:00:41.8]} 50. Kb1
{[%clk 0:00:12.4]} 50... Kd6 {[%clk 0:00:43.1]} 51. Ka2 {[%clk 0:00:13.3]} 51...
Bf5 {[%clk 0:00:44.1]} 52. Kb3 {[%clk 0:00:14.2]} 52... e4 {[%clk 0:00:45.2]}
53. Kb4 {[%clk 0:00:14.8]} 53... Ke5 {[%clk 0:00:46.5]} 54. Ba8 {[%clk 0:00:15]}
54... Rxb2+ {[%clk 0:00:47.4]} 55. Kc5 {[%clk 0:00:15.9]} 55... d3 {[%clk
0:00:48.2]} 56. Re1 {[%clk 0:00:15.2]} 56... d2 {[%clk 0:00:49.2]} 57. Rd1
{[%clk 0:00:16.4]} 57... e3 {[%clk 0:00:50.1]} 58. Ra1 {[%clk 0:00:15.8]} 58...
e2 {[%clk 0:00:50.7]} 59. Ra5 {[%clk 0:00:17]} 59... d1=Q {[%clk 0:00:51.2]} 60.
Kc6+ {[%clk 0:00:18.6]} 60... Kf4 {[%clk 0:00:52.2]} 0-1

[Event "*** Titled Tuesday 3|2 Blitz"]
[Site "Chess.com"]
[Date "2015.02.24"]
[Round "3"]
[White "wonderfultime"]
[Black "kesarev"]
[Result "0-1"]
[WhiteElo "2550"]
[BlackElo "2262"]
[TimeControl "180+2"]
[EndTime "11:35:58 PST"]
[Termination "kesarev won by resignation"]

1. d4 {[%clk 0:03:00]} 1... g6 {[%clk 0:02:59.2]} 2. Nf3 {[%clk 0:03:00.4]} 2...
Bg7 {[%clk 0:03:00.5]} 3. g3 {[%clk 0:02:57.2]} 3... Nf6 {[%clk 0:03:00.3]} 4.
Bg2 {[%clk 0:02:56.7]} 4... O-O {[%clk 0:03:01.1]} 5. O-O {[%clk 0:02:57.3]}
5... d6 {[%clk 0:03:02.2]} 6. c4 {[%clk 0:02:58.8]} 6... Nc6 {[%clk 0:03:02.8]}
7. d5 {[%clk 0:03:00]} 7... Na5 {[%clk 0:03:03.4]} 8. Nfd2 {[%clk 0:03:01.2]}
8... c5 {[%clk 0:03:05]} 9. Nc3 {[%clk 0:03:02.6]} 9... e5 {[%clk 0:03:05.8]}
10. Qc2 {[%clk 0:03:02.7]} 10... Ng4 {[%clk 0:03:06.4]} 11. h3 {[%clk
0:03:00.3]} 11... Nh6 {[%clk 0:03:07]} 12. b3 {[%clk 0:03:01.4]} 12... f5 {[%clk
0:03:07.4]} 13. f4 {[%clk 0:03:02.5]} 13... b6 {[%clk 0:03:04.4]} 14. Bb2 {[%clk
0:03:03.3]} 14... Nb7 {[%clk 0:03:03.9]} 15. Rae1 {[%clk 0:03:04.1]} 15... Bd7
{[%clk 0:02:55.2]} 16. e3 {[%clk 0:02:59.1]} 16... a6 {[%clk 0:02:46.8]} 17. Nd1
{[%clk 0:02:58.8]} 17... Qc7 {[%clk 0:02:44.6]} 18. Nf2 {[%clk 0:02:55.6]} 18...
Rae8 {[%clk 0:02:43.8]} 19. Nd3 {[%clk 0:02:55.8]} 19... Nf7 {[%clk 0:02:28.9]}
20. Kh2 {[%clk 0:02:54.6]} 20... b5 {[%clk 0:02:23.1]} 21. e4 {[%clk 0:02:53.7]}
21... fxe4 {[%clk 0:02:06.7]} 22. Nxe4 {[%clk 0:02:51.1]} 22... Nbd8 {[%clk
0:02:04.3]} 23. fxe5 {[%clk 0:02:50.1]} 23... Nxe5 {[%clk 0:02:04.9]} 24. Rxf8+
{[%clk 0:02:48.9]} 24... Kxf8 {[%clk 0:02:02.6]} 25. Ng5 {[%clk 0:02:38.9]}
25... Bf5 {[%clk 0:01:42.3]} 26. Bxe5 {[%clk 0:02:01]} 26... Bxe5 {[%clk
0:01:39.7]} 27. Qd2 {[%clk 0:02:02.5]} 27... Bf6 {[%clk 0:01:15.4]} 28. Rxe8+
{[%clk 0:01:49.8]} 28... Kxe8 {[%clk 0:01:16.1]} 29. Nf2 {[%clk 0:01:44.5]}
29... Qe7 {[%clk 0:00:57.8]} 30. Nge4 {[%clk 0:01:38.5]} 30... Be5 {[%clk
0:00:54.6]} 31. Kh1 {[%clk 0:01:39.3]} 31... h5 {[%clk 0:00:54.6]} 32. cxb5
{[%clk 0:01:20.8]} 32... axb5 {[%clk 0:00:54.2]} 33. Qe2 {[%clk 0:01:19.1]}
33... b4 {[%clk 0:00:45.8]} 34. Nd3 {[%clk 0:01:19]} 34... Nf7 {[%clk
0:00:27.6]} 35. Nxe5 {[%clk 0:01:02.4]} 35... Nxe5 {[%clk 0:00:24.6]} 36. Nd2
{[%clk 0:00:57.6]} 36... Kf7 {[%clk 0:00:21.9]} 37. Qf1 {[%clk 0:00:52.3]} 37...
Qf6 {[%clk 0:00:18.7]} 38. Qa6 {[%clk 0:00:45.6]} 38... Bd3 {[%clk 0:00:15.9]}
39. Qb7+ {[%clk 0:00:46.5]} 39... Qe7 {[%clk 0:00:17.1]} 40. Qb8 {[%clk
0:00:46.6]} 40... Kg7 {[%clk 0:00:15.8]} 41. Kh2 {[%clk 0:00:45.1]} 41... Kh7
{[%clk 0:00:15.4]} 42. Qb6 {[%clk 0:00:43.8]} 42... Kg7 {[%clk 0:00:16.2]} 43.
Qb8 {[%clk 0:00:42.2]} 43... Nf7 {[%clk 0:00:17.1]} 44. Nf3 {[%clk 0:00:41.3]}
44... Be2 {[%clk 0:00:16.3]} 45. Nd2 {[%clk 0:00:39.7]} 45... Qe3 {[%clk
0:00:17.2]} 46. Ne4 {[%clk 0:00:40.9]} 46... Bf3 {[%clk 0:00:15.8]} 47. Nxd6
{[%clk 0:00:19.1]} 47... Bxg2 {[%clk 0:00:16.5]} 48. Qc7 {[%clk 0:00:13.1]}
48... Bxd5 {[%clk 0:00:15.3]} 0-1

[Event "*** Titled Tuesday 3|2 Blitz"]
[Site "Chess.com"]
[Date "2015.02.24"]
[Round "3"]
[White "AlexanderL"]
[Black "bugsbunny444"]
[Result "0-1"]
[WhiteElo "2504"]
[BlackElo "2340"]
[TimeControl "180+2"]
[EndTime "11:36:22 PST"]
[Termination "bugsbunny444 won by resignation"]

1. b3 {[%clk 0:03:00]} 1... d5 {[%clk 0:02:56.2]} 2. Bb2 {[%clk 0:03:01.9]} 2...
Nf6 {[%clk 0:02:57.5]} 3. e3 {[%clk 0:03:03.2]} 3... e6 {[%clk 0:02:58.3]} 4.
Nf3 {[%clk 0:03:03]} 4... Be7 {[%clk 0:02:58.8]} 5. g3 {[%clk 0:03:04.4]} 5...
O-O {[%clk 0:02:58.6]} 6. Bg2 {[%clk 0:03:06.2]} 6... b6 {[%clk 0:02:58.9]} 7.
O-O {[%clk 0:03:08.1]} 7... Bb7 {[%clk 0:02:59.9]} 8. c4 {[%clk 0:03:09.8]} 8...
c5 {[%clk 0:02:30.8]} 9. cxd5 {[%clk 0:03:08.5]} 9... Nxd5 {[%clk 0:02:26.1]}
10. d4 {[%clk 0:03:06.9]} 10... Nd7 {[%clk 0:02:17.4]} 11. Qe2 {[%clk
0:03:04.9]} 11... Rc8 {[%clk 0:02:05.8]} 12. Rd1 {[%clk 0:03:05.2]} 12... Qc7
{[%clk 0:02:06.4]} 13. Na3 {[%clk 0:03:05.3]} 13... cxd4 {[%clk 0:01:55.9]} 14.
Nxd4 {[%clk 0:02:56.5]} 14... Bxa3 {[%clk 0:01:24]} 15. Nb5 {[%clk 0:02:56.1]}
15... Ba6 {[%clk 0:01:00.1]} 16. Rxd5 {[%clk 0:02:11.2]} 16... exd5 {[%clk
0:00:51.3]} 17. Bxa3 {[%clk 0:01:31.9]} 17... Qc6 {[%clk 0:00:31.5]} 18. Nxa7
{[%clk 0:01:15.5]} 18... Bxe2 {[%clk 0:00:30.6]} 19. Nxc6 {[%clk 0:01:15.9]}
19... Rxc6 {[%clk 0:00:26.8]} 20. Bxd5 {[%clk 0:01:15.6]} 20... Rc2 {[%clk
0:00:19.5]} 21. Bxf8 {[%clk 0:01:14.1]} 21... Kxf8 {[%clk 0:00:18.9]} 22. a4
{[%clk 0:01:05.2]} 22... Rd2 {[%clk 0:00:16.6]} 23. e4 {[%clk 0:00:42.1]} 23...
Rd1+ {[%clk 0:00:13]} 24. Rxd1 {[%clk 0:00:42.3]} 24... Bxd1 {[%clk 0:00:14.9]}
25. f4 {[%clk 0:00:28.7]} 25... Nc5 {[%clk 0:00:16.1]} 26. b4 {[%clk 0:00:29.2]}
26... Nxa4 {[%clk 0:00:17.3]} 27. Kf2 {[%clk 0:00:30.5]} 27... Nc3 {[%clk
0:00:16.4]} 28. Bc6 {[%clk 0:00:31.6]} 28... Ba4 {[%clk 0:00:16.1]} 29. Bb7
{[%clk 0:00:31.7]} 29... Ke7 {[%clk 0:00:13]} 30. Ke3 {[%clk 0:00:32.4]} 30...
Na2 {[%clk 0:00:10.9]} 31. e5 {[%clk 0:00:29.6]} 31... Nxb4 {[%clk 0:00:11.3]}
32. Be4 {[%clk 0:00:30.8]} 32... h6 {[%clk 0:00:10.6]} 33. f5 {[%clk 0:00:30.8]}
33... Bc6 {[%clk 0:00:11]} 34. Bb1 {[%clk 0:00:30.8]} 34... Bd7 {[%clk 0:00:09]}
35. g4 {[%clk 0:00:31.3]} 35... Na6 {[%clk 0:00:09.8]} 36. h4 {[%clk 0:00:30.6]}
36... Nc5 {[%clk 0:00:10.9]} 37. g5 {[%clk 0:00:31.6]} 37... hxg5 {[%clk
0:00:11.7]} 38. hxg5 {[%clk 0:00:32.8]} 38... Kd8 {[%clk 0:00:08.5]} 39. Kd4
{[%clk 0:00:28.7]} 39... Bc6 {[%clk 0:00:08.3]} 40. Ke3 {[%clk 0:00:17.4]} 40...
Ke8 {[%clk 0:00:09.3]} 41. Kd4 {[%clk 0:00:17.7]} 41... Kf8 {[%clk 0:00:09.8]}
42. Ke3 {[%clk 0:00:18.6]} 42... Nd7 {[%clk 0:00:08.2]} 43. Kd4 {[%clk
0:00:19.4]} 43... Nc5 {[%clk 0:00:09.3]} 44. Ba2 {[%clk 0:00:19.6]} 44... Bd7
{[%clk 0:00:08.9]} 45. Bb1 {[%clk 0:00:20.6]} 45... Bc6 {[%clk 0:00:10.3]} 46.
Ba2 {[%clk 0:00:20.9]} 46... Be4 {[%clk 0:00:11.2]} 47. f6 {[%clk 0:00:20.4]}
47... Bf5 {[%clk 0:00:09.3]} 48. fxg7+ {[%clk 0:00:14.5]} 48... Kxg7 {[%clk
0:00:10.3]} 49. Bd5 {[%clk 0:00:15.8]} 49... Be6 {[%clk 0:00:06.5]} 50. Bf3
{[%clk 0:00:11.1]} 50... Kg6 {[%clk 0:00:07.4]} 51. Kc3 {[%clk 0:00:12.3]} 51...
Kxg5 {[%clk 0:00:07.5]} 52. Kb4 {[%clk 0:00:14.2]} 52... Kf4 {[%clk 0:00:07.1]}
53. Bh1 {[%clk 0:00:15.4]} 53... Bd7 {[%clk 0:00:07.2]} 54. Bd5 {[%clk
0:00:15.3]} 54... Ne6 {[%clk 0:00:06.1]} 0-1